Cogmind - Beta 11.1 @@@ ROGUE MODE // 2022.05.15 @ 20:37:38 Player: Jezoensis Result: Self-destructed Performance ------------- Evolutions (6) 3000 Regions Visited (22) 4400 Robots Destroyed (265) 1325 Value Destroyed (9277) 9277 Prototype IDs (52) 1040 Alien Tech Used (2) 400 Bonus (2450) 2450 TOTAL SCORE: 21892 Bonus ------- High Alert Combat Kills 285 Follower Combat Kills 259 Entered Garrisons 200 Used RIF Installer 500 Entered DSFs 500 Network Hubs Disabled 200 Aligned with FarCom 300 Met Zhirov 300 Friendly Fire -94 Cogmind --------- Core Integrity 1030/1150 Matter 8/550 Energy 87/820 System Corruption 3% Temperature Cool (0) Movement Immobile (Siege) Ox1 Location -4/Factory Parts ------- > --- POWER (2) -------- Light Antimatter Reactor Quantum Reactor > --- PROPULSION (4) --- Heavy Treads Centrium Heavy Treads > --- UTILITY (9) ------ Advanced Heat Sink Huge Storage Unit Improved Energy Well Matter Compressor Enhanced Optical Array Advanced Targeting Computer Centrium Medium Armor Plating Force Field Improved Hacking Suite > --- WEAPON (4) ------- Gauss Rifle Railgun Railgun > --- INVENTORY (25) --- Heavy Treads Centrium Heavy Treads Centrium Heavy Treads High-capacity Storage Unit Matter Compressor (0) Improved Trap Scanner Advanced Sensor Array Advanced Signal Interpreter Advanced Terrain Scanner Weapon Cycler Improved Force Field Long-range Tractor Beam Advanced Variable Charge Gun Coil Gun KE Penetrator Advanced KE Penetrator Advanced KE Penetrator Chainsword Peak State ------------ > --- POWER ------------ Quantum Reactor Quantum Reactor > --- PROPULSION ------- Heavy Treads Centrium Heavy Treads > --- UTILITY ---------- Huge Storage Unit Improved Trap Scanner Enhanced Optical Array Advanced Terrain Scanner Advanced Salvage Targeting Computer Centrium Medium Armor Plating Force Field Improved Hacking Suite Improved Hacking Suite > --- WEAPON ----------- Gauss Rifle Gauss Rifle KE Penetrator Advanced KE Penetrator > --- INVENTORY -------- Centrium Heavy Treads Centrium Heavy Treads Centrium Heavy Treads Advanced Heat Sink High-capacity Storage Unit High-capacity Matter Pod Advanced Sensor Array Advanced Targeting Computer Weapon Cycler Makeshift System Shield Long-range Tractor Beam Advanced Variable Charge Gun Autogun Gauss Rifle Advanced KE Penetrator Advanced KE Penetrator Chainsword [Rating: 127] Favorites ----------- Power Quantum Reactor Engine Heavy Ion Engine Power Core Nuclear Core Reactor Quantum Reactor Propulsion Light Treads Treads Light Treads Wheel Wheel Utility High-capacity Storage Unit Device Advanced Terrain Scanner Storage High-capacity Storage Unit Processor Enhanced Optical Array Hackware Improved Hacking Suite Protection Centrium Medium Armor Plating Weapon Gauss Rifle Energy Gun Advanced Variable Charge Gun Energy Cannon Advanced Beam Cannon Ballistic Gun Gauss Rifle Ballistic Cannon AWS/Autocannon Launcher Grenade Launcher Special Weapon Mining Laser Slashing Weapon Scythe Build | -11 -10 -10 -9 -9 -9 -8 -8 -8 -8 -7 -7 -6 -6 -6 -6 -6 -5 -5 -5 -5 -4 -4 ------- Run | Scr Mat Min Mat Min Exi Min Mat Gar Mat Fac DSF Fac Ext Cet Arc Hub Fac Upp Upp Zhi Pro Fac Slots Evolved 12 | . . . 2 . . . 2 . . 2 . 2 . . . . 2 . . . . 2 Power 1 | . . . . . . . . . . . . . . . . . . . . . . 1 Propulsion 2 | . . . 1 . . . . . . 1 . . . . . . . . . . . . Utility 7 | . . . 1 . . . 1 . . 1 . 2 . . . . 1 . . . . 1 Weapon 2 | . . . . . . . 1 . . . . . . . . . 1 . . . . . Parts Attached 452 | 8 10 13 38 1 1 . 75 7 17 6 7 17 38 59 11 7 34 13 17 7 17 49 Power 23 | 1 1 1 2 . . . 2 . . . 1 1 6 5 . . . . . . . 3 Engine 11 | 1 1 1 2 . . . 1 . . . . 1 1 3 . . . . . . . . Core 8 | . . . . . . . 1 . . . 1 . 5 1 . . . . . . . . Reactor 4 | . . . . . . . . . . . . . . 1 . . . . . . . 3 Propulsion 51 | 3 . 3 14 . . . 7 2 1 2 . 2 2 8 . . 2 . . . . 5 Treads 44 | . . 1 12 . . . 7 2 1 2 . 2 2 8 . . 2 . . . . 5 Leg . | . . . . . . . . . . . . . . . . . . . . . . . Wheel 7 | 3 . 2 2 . . . . . . . . . . . . . . . . . . . Hover . | . . . . . . . . . . . . . . . . . . . . . . . Flight . | . . . . . . . . . . . . . . . . . . . . . . . Utility 232 | 2 2 3 7 1 . . 31 4 4 2 3 10 29 21 6 6 22 11 17 3 16 32 Device 182 | 1 . 3 4 1 . . 25 2 3 1 2 8 26 13 5 5 18 10 14 2 14 25 Storage 12 | 1 2 . 2 . . . . . . . . . . 2 . . . . . . . 5 Processor 15 | . . . 1 . . . 4 . 1 1 1 1 2 . . . 2 . . . . 2 Hackware 5 | . . . . . . . 1 . . . . 1 1 . . . 2 . . . . . Protection 18 | . . . . . . . 1 2 . . . . . 6 1 1 . 1 3 1 2 . Artifact . | . . . . . . . . . . . . . . . . . . . . . . . Weapon 146 | 2 7 6 15 . 1 . 35 1 12 2 3 4 1 25 5 1 10 2 . 4 1 9 Energy Gun 26 | 1 3 4 7 . . . 2 . . . . . . 6 2 . 1 . . . . . Energy Cannon 17 | . . . 3 . 1 . 12 . . . . . . . . . 1 . . . . . Ballistic Gun 74 | 1 1 2 4 . . . 9 . 9 . 2 3 1 17 3 . 7 2 . 4 1 8 Ballistic Cannon 1 | . . . . . . . . 1 . . . . . . . . . . . . . . Launcher 9 | . . . . . . . 5 . 1 . . . . 2 . 1 . . . . . . Special Weapon 8 | . 3 . 1 . . . 4 . . . . . . . . . . . . . . . Impact Weapon . | . . . . . . . . . . . . . . . . . . . . . . . Slashing Weapon 11 | . . . . . . . 3 . 2 2 1 1 . . . . 1 . . . . 1 Piercing Weapon . | . . . . . . . . . . . . . . . . . . . . . . . Special Melee Weapon . | . . . . . . . . . . . . . . . . . . . . . . . Unidentified Prototypes 16 | . . . 3 . . . 2 . 1 . . . . 4 . . 1 . . 4 . 1 Parts Lost 59 | . 1 2 13 . . . . . . . 1 1 1 25 . 1 1 2 . . 2 9 Power 4 | . . . . . . . . . . . . . . 3 . . . . . . . 1 Propulsion 20 | . . 1 6 . . . . . . . 1 1 1 8 . . . . . . . 2 Utility 8 | . . . 1 . . . . . . . . . . 2 . 1 . 1 . . 1 2 Weapon 27 | . 1 1 6 . . . . . . . . . . 12 . . 1 1 . . 1 4 Highest Loss Streak 15 | . 1 2 7 . . . . . . . 1 1 1 15 . 1 1 2 . . 2 6 To Critical Strikes 3 | . . . . . . . . . . . . . . 3 . . . . . . . . Average Slot Usage (%) 93 | . 99 92 98 100 100 100 99 81 99 100 98 100 99 87 86 86 87 87 88 59 87 88 Engine 4 | . 14 14 11 11 11 11 8 . . . . 1 . 4 . . . . . . . . Core 1 | . . . . . . . . 9 9 7 7 4 5 . . . . . . . . . Reactor 2 | . . . . . . . . . . . . . . . 6 6 5 5 5 5 5 10 Treads 19 | . . 4 28 33 33 33 27 27 27 30 28 26 25 15 13 13 11 11 11 11 11 10 Wheel 1 | . 28 23 4 . . . . . . . . . . . . . . . . . . . Device 9 | . 14 7 13 11 11 11 9 . 7 7 5 8 6 7 6 9 5 10 10 5 13 14 Storage 7 | . 14 14 11 11 11 11 9 9 9 7 7 6 6 5 6 6 5 5 5 5 5 5 Processor 14 | . . . 8 11 11 11 9 9 10 15 23 26 26 26 26 26 18 13 11 11 11 10 Hackware 5 | . . . . . . . 8 9 9 7 1 3 6 . . . 9 11 11 11 11 9 Protection 2 | . . . . . . . . 8 . . . . . 4 6 3 5 3 5 5 2 5 Energy Gun 1 | . 11 13 2 . . . . . . . . . . 2 2 . . . . . . . Energy Cannon 4 | . . . 13 22 22 22 18 . . . . . . . . . . . . . . . Ballistic Gun 14 | . 14 13 4 . . . 4 . 25 19 20 19 20 16 17 19 22 23 23 . 22 20 Naked Turns . | . . . . . . . . . . . . . . . . . . . . . . . Heaviest Build 157 | 13 50 51 58 57 57 57 64 111 58 58 58 60 68 124 124 123 136 129 135 124 128 157 Greatest Support 160 | 26 20 20 60 60 60 60 66 66 63 83 83 86 99 160 160 160 160 150 150 150 150 160 Greatest Overweight (x) 5 | . 2 4 1 . . . 1 1 . . . . . 5 . . . . . . . 1 Average Overweight (x) . | . . 2 . . . . . 1 . . . . . . . . . . . . . . Largest Inventory Capacity 25 | 8 20 20 20 20 20 20 20 20 20 20 20 20 20 25 25 25 25 25 25 25 25 25 Average Capacity 20 | 6 11 20 18 20 20 20 20 20 20 20 20 20 20 21 25 25 25 25 25 25 25 20 Most Carried 25 | 7 16 20 20 20 20 20 20 20 20 20 20 20 20 25 25 25 25 25 25 25 25 24 Average Carried 19 | 4 8 18 16 20 19 20 19 19 19 19 19 18 19 18 24 24 23 23 23 25 23 19 Final Capacity 25 | 8 20 20 20 20 20 20 20 20 20 20 20 20 20 25 25 25 25 25 25 25 25 25 Final Carried 25 | 7 16 20 20 20 20 20 20 20 20 20 20 20 20 25 25 24 25 23 25 25 24 21 Class Distribution -------------------- 46% | Scavenger-Skirmisher 16% | Scavenger-Mutant 15% | Mutant 15% | Skirmisher Dominant Class ---------------- Mutant | -10/Materials Mutant | -10/Mines Mutant | -9/Materials Scavenger-Mutant | -9/Mines Scavenger-Mutant | -9/Exiles Scavenger-Skirmisher | -8/Mines Skirmisher | -8/Materials Mutant | -8/Garrison Skirmisher | -8/Materials Assassin | -7/Factory Scavenger-Skirmisher | -7/DSF Scavenger-Skirmisher | -6/Factory Scavenger-Skirmisher | -6/Extension Scavenger-Skirmisher | -6/Cetus Scavenger-Skirmisher | -6/Archives Scavenger-Skirmisher | -6/Hub_04(d) Scavenger-Skirmisher | -5/Factory Scavenger-Skirmisher | -5/Upper Caves Scavenger-Skirmisher | -5/Upper Caves Scavenger-Mutant | -5/Zhirov Scavenger-Skirmisher | -4/Proximity Caves Scavenger-Skirmisher | -4/Factory Resources | -11 -10 -10 -9 -9 -9 -8 -8 -8 -8 -7 -7 -6 -6 -6 -6 -6 -5 -5 -5 -5 -4 -4 ----------- Run | Scr Mat Min Mat Min Exi Min Mat Gar Mat Fac DSF Fac Ext Cet Arc Hub Fac Upp Upp Zhi Pro Fac Matter Collected 11037 | 290 166 222 423 17 84 10 806 145 481 . 51 704 1224 1923 352 256 858 625 473 . 588 1339 Remotely 5174 | . . . . . . . 292 145 169 . . 278 663 875 272 100 739 424 463 . 465 289 Salvage Created 11874 | 133 439 550 1336 . . 30 1024 86 552 . 51 427 1018 1212 493 450 1073 548 436 . 467 1549 Parts 654 | 8 27 28 84 . . 5 59 4 28 . 8 18 57 69 27 29 61 25 11 . 32 74 Haulers Intercepted 13 | . 2 . 4 . . . 4 . 2 . . . . . . . . . . . . 1 Recyclers Shooed 17 | . . 4 . . . . . . . . . 3 5 . . . 2 . . . . 3 Parts Field Recycled . | . . . . . . . . . . . . . . . . . . . . . . . Retrieved Matter . | . . . . . . . . . . . . . . . . . . . . . . . Parts Self-Destructed 74 | . . . . . . . . . . . . . . . . . . 25 15 . 34 . Prevented 1 | . . . . . . . . . . . . . . . . . . . 1 . . . Kills | -11 -10 -10 -9 -9 -9 -8 -8 -8 -8 -7 -7 -6 -6 -6 -6 -6 -5 -5 -5 -5 -4 -4 ------- Run | Scr Mat Min Mat Min Exi Min Mat Gar Mat Fac DSF Fac Ext Cet Arc Hub Fac Upp Upp Zhi Pro Fac Combat Hostiles Destroyed 179 | . 8 6 24 . . . 26 6 8 . 1 1 15 21 4 4 16 9 10 . 10 10 Guns 133 | . 8 6 16 . . . . . 6 . 1 1 15 17 4 4 16 9 10 . 10 10 Cannons 20 | . . . 6 . . . 8 6 . . . . . . . . . . . . . . AOE 25 | . . . 2 . . . 17 . 2 . . . . 4 . . . . . . . . Classes Destroyed 17 | 2 4 1 4 . . . 1 . 1 . 1 . 1 1 . . . . . . . 1 Worker 12 | . . . 1 . . . . . . . . 2 . . . 5 . . . . . 4 Builder 13 | . . 2 1 . . 1 2 . . . . . . . . 3 1 . . . . 3 Tunneler 7 | 2 . 1 2 . . 1 . . . . . . . . . . . . . . . 1 Hauler 13 | . 2 . 4 . . . 4 . 2 . . . . . . . . . . . . 1 Recycler 19 | 1 2 2 2 . . . 1 . 1 . . 2 2 . . . 2 . . . . 4 Mechanic 1 | . . . . . . . . . 1 . . . . . . . . . . . . . Operator 7 | . . . 1 . . . . . . . . . 1 . 4 1 . . . . . . Watcher 14 | . 1 . 4 . . . . . . . . . 3 1 . 1 2 . . . . 2 Swarmer 55 | . 6 . 8 . . . 9 4 . . . . 7 3 . . 9 . 4 . 5 . Grunt 60 | . 2 6 11 . . . 10 . 5 . . . 4 5 . 2 . 7 6 . 2 . Brawler 2 | . . . . . . . . . . . . . . 1 . . . 1 . . . . Duelist 2 | . . . 1 . . . . . . . . . . 1 . . . . . . . . Sentry 26 | . . . 4 . . . 6 2 3 . . . 3 . 4 2 1 . . . . 1 Specialist 1 | . . . . . . . . . . . 1 . . . . . . . . . . . Hunter 16 | . . . . . . . 1 . . . . 1 . 2 . . 4 1 . . 2 5 Programmer 8 | . . . . . . . . . . . . . 1 1 . . 2 . . . 1 3 Behemoth 1 | . . . . . . . . . . . . . . . . . . . . . . 1 Cetus Guard 8 | . . . . . . . . . . . . . . 8 . . . . . . . . Best Kill Streak 10 | 2 6 4 10 . . 1 7 4 5 . 1 3 4 7 3 9 7 8 4 . 5 8 Combat Bots Only 8 | . 3 2 5 . . . 6 4 5 . 1 1 3 7 2 3 6 8 4 . 5 3 Max Kills in Single Turn 8 | 1 1 1 4 . . 1 3 1 2 . 1 1 2 3 1 8 3 1 2 . 3 4 Gunslinging 2 | . . . . . . . . . . . . . 1 . . . 2 . 1 . 1 . Exploded 3 | . . . 2 . . . 3 . 2 . . . . 3 . . . . . . . . Melee . | . . . . . . . . . . . . . . . . . . . . . . . Uniques/NPCs Destroyed . | . . . . . . . . . . . . . . . . . . . . . . . Combat | -11 -10 -10 -9 -9 -9 -8 -8 -8 -8 -7 -7 -6 -6 -6 -6 -6 -5 -5 -5 -5 -4 -4 -------- Run | Scr Mat Min Mat Min Exi Min Mat Gar Mat Fac DSF Fac Ext Cet Arc Hub Fac Upp Upp Zhi Pro Fac Damage Taken 15447 | . 200 446 1647 . . . 706 142 435 . 140 145 645 5599 201 493 682 984 288 . 705 1989 Core 1533 | . 36 95 202 . . . 85 22 75 . . 23 65 585 . 33 25 39 37 . 91 120 Absorbed by Shields 2090 | . . . . . . . . . . . . . 447 80 87 . 54 48 . . 40 1334 Reduced by Siege Mode 751 | . . . . . . . . . . . . . . 310 15 34 67 93 30 . 24 178 Redirected to Shielding 110 | . . . . . . . . . . . . . . . . . . . 12 . 98 . Core Remaining (%) 64 | 100 . 47 . . . 49 . . 66 . 100 . . . . 16 . . . . 74 . Volleys Fired 666 | 10 37 43 95 . . 5 46 . 29 1 2 17 69 96 22 27 33 21 23 . 26 64 Largest 4 | 2 2 2 2 . . 2 3 . 3 3 3 3 3 3 3 3 4 4 4 . 4 4 Hottest 240 | 60 100 80 136 . . 136 204 . 78 78 78 81 81 240 188 96 136 136 129 . 129 124 Shots Fired 1780 | 20 67 86 172 . . 10 101 11 80 3 6 49 203 260 66 53 119 77 62 . 90 245 Gun 1586 | 20 63 86 114 . . . . . 78 3 6 49 203 254 66 51 119 77 62 . 90 245 Cannon 155 | . . . 58 . . 10 76 11 . . . . . . . . . . . . . . Launcher 30 | . . . . . . . 20 . 2 . . . . 6 . 2 . . . . . . Special 9 | . 4 . . . . . 5 . . . . . . . . . . . . . . . Kinetic 1433 | 10 33 36 64 . . . . 11 78 3 6 49 203 234 62 51 119 77 62 . 90 245 Thermal 274 | 10 27 28 94 . . 10 81 . . . . . . 20 4 . . . . . . . Explosive 30 | . . . . . . . 20 . 2 . . . . 6 . 2 . . . . . . Electromagnetic 43 | . 7 22 14 . . . . . . . . . . . . . . . . . . . Robot Hit Streak 46 | 4 8 8 12 . . 4 14 25 27 5 6 11 17 38 35 22 20 27 13 . 17 46 Robot Miss Streak 6 | 3 6 4 3 . . 1 2 . 4 1 . 1 3 2 3 1 3 2 3 . 5 3 Penetration Max 2 | . . . . . . . . . . . . 1 1 1 1 1 1 1 . . . 2 Secondary Targets 27 | . . 1 5 . . . . . . . . . 2 7 1 . 4 3 3 . 1 . Max Gunslinging Chain 2 | . . 1 1 . . . . . . . . . 1 1 1 . 2 1 1 . 1 . Autonomous 11 | . . . . . . . . 11 . . . . . . . . . . . . . . Shots Hit Robots 1227 | 13 35 55 110 . . 7 54 11 47 3 6 37 147 233 49 25 61 51 32 . 49 202 Core Hits 544 | 4 18 25 56 . . 1 51 5 20 . 2 15 55 84 19 26 32 23 17 . 24 67 Critical Kills 15 | . . . . . . . 2 . . . . . 1 1 4 . 3 . 2 . 2 . Critical Parts Destroyed 27 | . 1 . . . . . . . . . 1 1 3 2 2 3 4 4 1 . 4 1 Critical Strikes 57 | . 1 . 2 . . . 2 2 . . 1 1 5 6 7 4 7 5 3 . 6 5 Burn 1 | . . . 1 . . . . . . . . . . . . . . . . . . . Meltdown 2 | . . . . . . . 2 . . . . . . . . . . . . . . . Destroy 51 | . 1 . . . . . . . . . 1 1 5 6 7 4 7 5 3 . 6 5 Blast 2 | . . . . . . . . 2 . . . . . . . . . . . . . . Corrupt 1 | . . . 1 . . . . . . . . . . . . . . . . . . . Melee Attacks 16 | . . . . . . . 3 . 3 4 3 1 . . . . 1 . . . . 1 Impact . | . . . . . . . . . . . . . . . . . . . . . . . Slashing 16 | . . . . . . . 3 . 3 4 3 1 . . . . 1 . . . . 1 Piercing . | . . . . . . . . . . . . . . . . . . . . . . . Sneak Attacks 1 | . . . . . . . . . . 1 . . . . . . . . . . . . Combat Hostiles . | . . . . . . . . . . . . . . . . . . . . . . . Follow-up Attacks . | . . . . . . . . . . . . . . . . . . . . . . . Damage Inflicted 29423 | 127 443 680 1965 . . 143 2302 924 1168 113 100 645 2913 5352 1434 1548 1624 1292 729 . 1094 4827 Guns 22403 | 127 443 680 899 . . . . . 865 46 100 645 2888 4423 1434 631 1617 1292 729 . 1094 4490 Cannons 2906 | . . . 832 . . 143 1007 924 . . . . . . . . . . . . . . Explosions 3955 | . . . 234 . . . 1273 . 296 . . . . 929 . 909 . . . . . 314 Melee 67 | . . . . . . . . . . 67 . . . . . . . . . . . . Ramming 92 | . . . . . . . 22 . 7 . . . 25 . . 8 7 . . . . 23 Kinetic 21494 | 40 260 297 342 . . . . 924 865 46 100 645 2888 3937 1297 631 1617 1292 729 . 1094 4490 Thermal 3924 | 87 130 253 1357 . . 143 1007 . . . . . . 486 137 10 . . . . . 314 Explosive 2662 | . . . 128 . . . 1273 . 296 . . . . 929 . 36 . . . . . . Electromagnetic 1184 | . 53 130 138 . . . . . . . . . . . . 863 . . . . . . Impact . | . . . . . . . . . . . . . . . . . . . . . . . Slashing 67 | . . . . . . . . . . 67 . . . . . . . . . . . . Piercing . | . . . . . . . . . . . . . . . . . . . . . . . Highest Corruption 4 | . . . 2 2 2 2 1 1 1 . . . . 1 1 2 1 2 2 2 4 3 Average Corruption 1 | . . . 2 2 2 2 1 1 1 . . . . 1 1 1 1 1 2 2 3 1 Corruption Purged . | . . . . . . . . . . . . . . . . . . . . . . . Corruption Blocked . | . . . . . . . . . . . . . . . . . . . . . . . Effects 65 | . . . 15 1 7 6 . 2 5 . . . . . 3 2 . 10 4 1 9 . Message Errors 13 | . . . 4 . 1 1 . 1 . . . . . . 2 . . 1 . . 3 . Matter Fused 15 | . . . 4 . 4 1 . . . . . . . . . 1 . 2 2 . 1 . Heat Flow Errors 7 | . . . . 1 . . . . 2 . . . . . . 1 . . 1 1 1 . Energy Discharges 12 | . . . 2 . 2 2 . . 1 . . . . . 1 . . 2 1 . 1 . Data Loss (minor) 10 | . . . 4 . . . . 1 1 . . . . . . . . 2 . . 2 . Data Loss (major) 3 | . . . . . . 1 . . 1 . . . . . . . . 1 . . . . Misfires 2 | . . . . . . . . . . . . . . . . . . 1 . . 1 . Alerts 2 | . . . . . . 1 . . . . . . . . . . . 1 . . . . Weapon Failures 1 | . . . 1 . . . . . . . . . . . . . . . . . . . Overload Shots 1 | . . . . . . . . . . . . . . 1 . . . . . . . . Overflow Damage 570 | . . . 90 . . 12 65 184 14 37 . . . 16 . 21 . . . . . 131 Projectiles 232 | . . . 18 . . 12 18 184 . . . . . . . . . . . . . . Explosions 294 | . . . 72 . . . 40 . 14 . . . . 16 . 21 . . . . . 131 Melee 44 | . . . . . . . 7 . . 37 . . . . . . . . . . . . Knockbacks 1 | . . . . . . . . 1 . . . . . . . . . . . . . . Impact . | . . . . . . . . . . . . . . . . . . . . . . . Kinetic 1 | . . . . . . . . 1 . . . . . . . . . . . . . . Secondary . | . . . . . . . . . . . . . . . . . . . . . . . Self-Inflicted Damage 325 | . . . 82 . . . 73 . . . . . . . . 105 . . . . . 65 Shots 6 | . . . 1 . . . 2 . . . . . . . . 2 . . . . . 1 Rammed 10 | . . . . . . . 2 . 2 . . . 2 . . 1 1 . . . . 2 Targets Rammed 10 | . . . . . . . 2 . 2 . . . 2 . . 1 1 . . . . 2 Kicked . | . . . . . . . . . . . . . . . . . . . . . . . Crushed . | . . . . . . . . . . . . . . . . . . . . . . . Highest Temperature 419 | 40 40 298 78 210 . 138 258 . 247 24 . 36 111 419 168 346 304 311 167 147 230 238 Average Temperature 76 | 24 16 83 21 108 . 67 76 . 97 12 . 17 30 138 71 126 100 176 42 75 44 50 Received Heat Transfer 2961 | . 24 270 342 . . . 207 27 207 . . . 91 949 46 126 9 423 93 . 30 117 Effects 5 | . . . . . . . 1 . . . . . . 3 . . 1 . . . . . Energy Bleed 3 | . . . . . . . 1 . . . . . . 1 . . 1 . . . . . Damage (minor) 2 | . . . . . . . . . . . . . . 2 . . . . . . . . Siege Activations 30 | . . . . . . . . . . . . . . 7 2 1 5 2 3 . 4 6 Total Turns 515 | . . . . . . . . . . . . . . 138 33 15 57 55 30 . 44 143 Longest Duration 48 | . . . . . . . . . . . . . . 47 20 15 13 48 19 . 17 36 Robots Corrupted . | . . . . . . . . . . . . . . . . . . . . . . . Combat Hostiles . | . . . . . . . . . . . . . . . . . . . . . . . Parts Fried 8 | . 1 1 . . . . . . . . . . . . . 6 . . . . . . Impact Corruptions 1 | . . . . . . . 1 . . . . . . . . . . . . . . . Robots Melted 2 | . . . . . . . 2 . . . . . . . . . . . . . . . Combat Hostiles 1 | . . . . . . . 1 . . . . . . . . . . . . . . . Parts Melted 12 | . . 1 3 . . . 8 . . . . . . . . . . . . . . . Heat Transferred 6757 | 200 300 740 2579 . . 259 1702 . . . . . . 629 148 50 . . . . . 150 Parts Sabotaged . | . . . . . . . . . . . . . . . . . . . . . . . Parts Stolen . | . . . . . . . . . . . . . . . . . . . . . . . Parts Stripped . | . . . . . . . . . . . . . . . . . . . . . . . Power Chain Reactions 3 | . . . 2 . . . . . . . . . . . . 1 . . . . . . Missiles Intercepted . | . . . . . . . . . . . . . . . . . . . . . . . Alert | -11 -10 -10 -9 -9 -9 -8 -8 -8 -8 -7 -7 -6 -6 -6 -6 -6 -5 -5 -5 -5 -4 -4 ------- Run | Scr Mat Min Mat Min Exi Min Mat Gar Mat Fac DSF Fac Ext Cet Arc Hub Fac Upp Upp Zhi Pro Fac Peak Influence 651 | 15 319 222 574 103 . 10 651 570 415 49 61 72 533 400 281 638 522 . . . . 379 Initial 312 | . 9 67 86 103 . . . 310 277 42 34 31 . 234 94 98 312 . . . . 69 Average 251 | 5 184 125 425 103 . 1 336 449 312 42 52 58 283 218 224 184 314 . . . . 122 Maximum Alert Level 2 | . 1 1 2 . . . 2 2 2 . . . 2 2 1 2 2 . . . . 1 Low Security (%) 44 | 100 56 93 6 100 . 100 35 . 3 100 100 100 31 27 35 64 31 . . . . 84 Level 1 30 | . 43 6 20 . . . 13 39 92 . . . 46 65 64 33 32 . . . . 15 Level 2 25 | . . . 73 . . . 50 60 3 . . . 21 7 . 1 36 . . . . . Level 3 . | . . . . . . . . . . . . . . . . . . . . . . . Level 4 . | . . . . . . . . . . . . . . . . . . . . . . . Level 5 . | . . . . . . . . . . . . . . . . . . . . . . . High Security . | . . . . . . . . . . . . . . . . . . . . . . . Max Security . | . . . . . . . . . . . . . . . . . . . . . . . Squads Dispatched 21 | . . . 3 . . . 6 . 1 . . 2 1 . . 1 3 . . . . 4 Investigation 6 | . . . . . . . 4 . 1 . . . . . . . 1 . . . . . Extermination 3 | . . . . . . . . . . . . . . . . . 1 . . . . 2 Reinforcement 11 | . . . 3 . . . 2 . . . . 2 1 . . 1 . . . . . 2 Assault 1 | . . . . . . . . . . . . . . . . . 1 . . . . . Garrison . | . . . . . . . . . . . . . . . . . . . . . . . Intercept . | . . . . . . . . . . . . . . . . . . . . . . . Searches Triggered . | . . . . . . . . . . . . . . . . . . . . . . . Construction Impeded 1 | . . . . . . . . . . . . . . . . . . . . . . 1 Haulers Reinforced 1 | . . . . . . . . . . . . . . . . . . . . . . 1 Active Scanning Responses . | . . . . . . . . . . . . . . . . . . . . . . . Cargo Convoy Interrupts . | . . . . . . . . . . . . . . . . . . . . . . . Stealth | -11 -10 -10 -9 -9 -9 -8 -8 -8 -8 -7 -7 -6 -6 -6 -6 -6 -5 -5 -5 -5 -4 -4 --------- Run | Scr Mat Min Mat Min Exi Min Mat Gar Mat Fac DSF Fac Ext Cet Arc Hub Fac Upp Upp Zhi Pro Fac Distress Signals 8 | . . 1 1 . . . 4 . . . . . . 1 . 1 . . . . . . Communications Jammed 39 | . . . . . . . . . . . . . . . . 39 . . . . . . Distress Signals 39 | . . . . . . . . . . . . . . . . 39 . . . . . . Times Spotted 270 | . 13 6 37 . . . 42 6 10 1 2 1 28 24 16 11 21 9 13 . 12 18 Peak Tracking Total 8 | . 4 2 6 . . . 8 4 3 1 1 1 6 5 1 8 5 7 4 . 5 5 Tactical Retreats 7 | . 1 . . . . . . . . . 1 . 3 . . . 1 . . . 1 . Traps | -11 -10 -10 -9 -9 -9 -8 -8 -8 -8 -7 -7 -6 -6 -6 -6 -6 -5 -5 -5 -5 -4 -4 ------- Run | Scr Mat Min Mat Min Exi Min Mat Gar Mat Fac DSF Fac Ext Cet Arc Hub Fac Upp Upp Zhi Pro Fac Traps Triggered 11 | . . . 2 . . . 1 2 2 1 . . . . . 2 1 . . . . . Indirectly 2 | . . . . . . . . . . . . . . . . 2 . . . . . . Trap Hack Attempts . | . . . . . . . . . . . . . . . . . . . . . . . Triggered . | . . . . . . . . . . . . . . . . . . . . . . . Disarmed . | . . . . . . . . . . . . . . . . . . . . . . . Reprogrammed . | . . . . . . . . . . . . . . . . . . . . . . . Reused . | . . . . . . . . . . . . . . . . . . . . . . . Traps Extracted . | . . . . . . . . . . . . . . . . . . . . . . . Installed . | . . . . . . . . . . . . . . . . . . . . . . . Triggered 1 | . . . . . . . . . . . . . . . . 1 . . . . . . Machines | -11 -10 -10 -9 -9 -9 -8 -8 -8 -8 -7 -7 -6 -6 -6 -6 -6 -5 -5 -5 -5 -4 -4 ---------- Run | Scr Mat Min Mat Min Exi Min Mat Gar Mat Fac DSF Fac Ext Cet Arc Hub Fac Upp Upp Zhi Pro Fac Machines Disabled 30 | . 1 . 3 . . . 2 1 2 . . . 2 1 3 12 1 . . . . 2 Max in Single Turn 12 | . 1 . 1 . . . 1 1 1 . . . 1 1 1 12 1 . . . . 1 Garrison Access 4 | . . . . . . . . . . 1 . . . . . 1 1 . . . . 1 Network Hub 1 | . . . . . . . . . . . . . . . . 1 . . . . . . Machines Sabotaged . | . . . . . . . . . . . . . . . . . . . . . . . Garrisons Compromised . | . . . . . . . . . . . . . . . . . . . . . . . Overloaded Fab Kills . | . . . . . . . . . . . . . . . . . . . . . . . Hacking | -11 -10 -10 -9 -9 -9 -8 -8 -8 -8 -7 -7 -6 -6 -6 -6 -6 -5 -5 -5 -5 -4 -4 --------- Run | Scr Mat Min Mat Min Exi Min Mat Gar Mat Fac DSF Fac Ext Cet Arc Hub Fac Upp Upp Zhi Pro Fac Machines Accessed 45 | . 4 1 5 . 1 . 9 . 3 2 . 1 5 1 . 1 4 . 1 4 . 3 Terminals 32 | . 4 1 5 . . . 6 . 3 1 . 1 5 1 . . 3 . . . . 2 Fabricators . | . . . . . . . . . . . . . . . . . . . . . . . Repair Stations . | . . . . . . . . . . . . . . . . . . . . . . . Recycling Units 2 | . . . . . . . 2 . . . . . . . . . . . . . . . Scanalyzers . | . . . . . . . . . . . . . . . . . . . . . . . Garrison Access 5 | . . . . . . . 1 . . 1 . . . . . 1 1 . . . . 1 Total Hacks 138 | . 14 2 21 . 1 . 24 . 11 3 . 3 7 1 . 1 24 . 1 17 . 8 Successful 94 | . 8 1 12 . 1 . 15 . 6 2 . . 5 1 . 1 17 . 1 17 . 7 Failed 41 | . 5 1 9 . . . 8 . 5 1 . 3 2 . . . 6 . . . . 1 Catastrophic 3 | . . . . . . . . . . . . 2 . . . . 1 . . . . . Database Lockouts 3 | . 1 . . . . . 1 . . . . . . . . . 1 . . . . . Manual 73 | . 13 2 15 . 1 . 14 . 6 . . . . . . . 16 . . . . 6 Terminals 111 | . 14 2 21 . . . 20 . 11 2 . 3 7 1 . . 23 . . . . 7 Fabricators . | . . . . . . . . . . . . . . . . . . . . . . . Repair Stations . | . . . . . . . . . . . . . . . . . . . . . . . Recycling Units 3 | . . . . . . . 3 . . . . . . . . . . . . . . . Scanalyzers . | . . . . . . . . . . . . . . . . . . . . . . . Garrison Access 5 | . . . . . . . 1 . . 1 . . . . . 1 1 . . . . 1 Terminal Hacks 68 | . 4 1 9 . 1 . 8 . 5 1 . . 5 1 . . 12 . 1 17 . 3 Record 6 | . . . . . . . . . . . . . . 1 . . . . . 5 . . Part Schematic 5 | . . . . . . . . . . . . . . . . . . . . 4 . 1 Robot Analysis 13 | . 1 1 3 . . . 1 . 1 . . . . . . . 2 . . 4 . . Prototype ID Bank 7 | . 1 . 1 . . . 1 . . . . . . . . . . . . 4 . . Open Door 6 | . . . . . . . . . . . . . 5 . . . . . 1 . . . Open DSF 1 | . . . . . . . . . . 1 . . . . . . . . . . . . Level Access Points 1 | . . . . . . . . . . . . . . . . . 1 . . . . . Branch Access Points 2 | . . . . . . . . . . . . . . . . . 1 . . . . 1 Terminal Index 6 | . 1 . 1 . . . 1 . 1 . . . . . . . 1 . . . . 1 Garrison Index 1 | . . . . . . . . . . . . . . . . . 1 . . . . . Unreport Threat 9 | . 1 . 2 . . . 1 . 2 . . . . . . . 3 . . . . . Locate Traps 4 | . . . 1 . . . 2 . 1 . . . . . . . . . . . . . Recall Investigation 1 | . . . . . . . 1 . . . . . . . . . . . . . . . Recall Assault 1 | . . . . . . . . . . . . . . . . . 1 . . . . . Hauler Manifests 1 | . . . . . . . 1 . . . . . . . . . . . . . . . Registered Components 2 | . . . . . . . . . . . . . . . . . 2 . . . . . Zone Layout 1 | . . . 1 . . . . . . . . . . . . . . . . . . . EX-Prototype ID Bank 1 | . . . . . 1 . . . . . . . . . . . . . . . . . Fabricator Hacks . | . . . . . . . . . . . . . . . . . . . . . . . Repair Station Hacks . | . . . . . . . . . . . . . . . . . . . . . . . Recycling Unit Hacks . | . . . . . . . . . . . . . . . . . . . . . . . Scanalyzer . | . . . . . . . . . . . . . . . . . . . . . . . Garrison Access Hacks 5 | . . . . . . . 1 . . 1 . . . . . 1 1 . . . . 1 Unlock Access 1 | . . . . . . . 1 . . . . . . . . . . . . . . . Seal Access 4 | . . . . . . . . . . 1 . . . . . 1 1 . . . . 1 Unauthorized Hacks 21 | . 4 . 3 . . . 6 . 1 . . . . . . . 4 . . . . 3 Terminals 18 | . 4 . 3 . . . 3 . 1 . . . . . . . 4 . . . . 3 Track 1 | . . . . . . . . . . . . . . . . . 1 . . . . . Assimilate 2 | . 1 . . . . . 1 . . . . . . . . . . . . . . . Botnet 10 | . 2 . 2 . . . 1 . 1 . . . . . . . 2 . . . . 2 Operators 5 | . 1 . 1 . . . 1 . . . . . . . . . 1 . . . . 1 Fabricators . | . . . . . . . . . . . . . . . . . . . . . . . Repair Stations . | . . . . . . . . . . . . . . . . . . . . . . . Recycling Units 3 | . . . . . . . 3 . . . . . . . . . . . . . . . Reject 1 | . . . . . . . 1 . . . . . . . . . . . . . . . Recyclers 1 | . . . . . . . 1 . . . . . . . . . . . . . . . Tunnel 1 | . . . . . . . 1 . . . . . . . . . . . . . . . Scanalyzers . | . . . . . . . . . . . . . . . . . . . . . . . Garrison Access . | . . . . . . . . . . . . . . . . . . . . . . . Data Cores Recovered . | . . . . . . . . . . . . . . . . . . . . . . . Used . | . . . . . . . . . . . . . . . . . . . . . . . Hacking Detections 26 | . 4 1 5 . . . 6 . 3 . . 1 2 . . . 2 . . . . 2 Full Trace Events 2 | . . . . . . . 2 . . . . . . . . . . . . . . . Feedback Events 1 | . . . . . . . 1 . . . . . . . . . . . . . . . Corruption 1 | . . . . . . . 1 . . . . . . . . . . . . . . . Feedback Blocked . | . . . . . . . . . . . . . . . . . . . . . . . Robot Schematics Acquired . | . . . . . . . . . . . . . . . . . . . . . . . Robots Built . | . . . . . . . . . . . . . . . . . . . . . . . Authchips . | . . . . . . . . . . . . . . . . . . . . . . . Time . | . . . . . . . . . . . . . . . . . . . . . . . Total Robot Build Rating . | . . . . . . . . . . . . . . . . . . . . . . . Part Schematics Acquired 5 | . . . . . . . . . . . . . . . . . . . . 4 . 1 Parts Built . | . . . . . . . . . . . . . . . . . . . . . . . Authchips . | . . . . . . . . . . . . . . . . . . . . . . . Time . | . . . . . . . . . . . . . . . . . . . . . . . Total Part Build Rating . | . . . . . . . . . . . . . . . . . . . . . . . Parts Repaired . | . . . . . . . . . . . . . . . . . . . . . . . Time . | . . . . . . . . . . . . . . . . . . . . . . . Parts Recycled . | . . . . . . . . . . . . . . . . . . . . . . . Recycled Matter . | . . . . . . . . . . . . . . . . . . . . . . . Retrieved Matter . | . . . . . . . . . . . . . . . . . . . . . . . Retrieved Components . | . . . . . . . . . . . . . . . . . . . . . . . Parts Scanalyzed . | . . . . . . . . . . . . . . . . . . . . . . . Part Schematics Acquired . | . . . . . . . . . . . . . . . . . . . . . . . Parts Damaged . | . . . . . . . . . . . . . . . . . . . . . . . Bothacking | -11 -10 -10 -9 -9 -9 -8 -8 -8 -8 -7 -7 -6 -6 -6 -6 -6 -5 -5 -5 -5 -4 -4 ------------ Run | Scr Mat Min Mat Min Exi Min Mat Gar Mat Fac DSF Fac Ext Cet Arc Hub Fac Upp Upp Zhi Pro Fac Used RIF Installer 1 | . . . . . . . . 1 . . . . . . . . . . . . . . Robots Hacked . | . . . . . . . . . . . . . . . . . . . . . . . Non-combat . | . . . . . . . . . . . . . . . . . . . . . . . Combat . | . . . . . . . . . . . . . . . . . . . . . . . Robot Hacks Applied . | . . . . . . . . . . . . . . . . . . . . . . . Relay Couplers Released 3 | . . . . . . . . . . . . . . . . 3 . . . . . . Machine Destruction 3 | . . . . . . . . . . . . . . . . 3 . . . . . . Fabnet Peak Effective % . | . . . . . . . . . . . . . . . . . . . . . . . Robots Rewired 3 | . . . . . . . . . . . . . 3 . . . . . . . . . Allies Hacked . | . . . . . . . . . . . . . . . . . . . . . . . Hacks Repelled . | . . . . . . . . . . . . . . . . . . . . . . . Allies | -11 -10 -10 -9 -9 -9 -8 -8 -8 -8 -7 -7 -6 -6 -6 -6 -6 -5 -5 -5 -5 -4 -4 -------- Run | Scr Mat Min Mat Min Exi Min Mat Gar Mat Fac DSF Fac Ext Cet Arc Hub Fac Upp Upp Zhi Pro Fac Total Allies 11 | . 1 . . . . . . . . . . . 8 . . . . . 2 . . . Largest Group 8 | . 1 1 1 . . . . . . . . . 8 4 . . . . 2 . . . Highest-Rated Group 212 | . 10 10 10 . . . . . . . . . 212 91 . . . . 51 . . . Highest-Rated Ally 39 | . 10 10 10 . . . . . . . . . 39 31 . . . . 31 . . . Total Orders 2 | . 1 . 1 . . . . . . . . . . . . . . . . . . . STAY 2 | . 1 . 1 . . . . . . . . . . . . . . . . . . . Ally Attacks 82 | . . . . . . . . . . . . . 68 3 . . . . 11 . . . Total Damage 1395 | . . . . . . . . . . . . . 1136 86 . . . . 173 . . . Kills 9 | . . . . . . . . . . . . . 7 1 . . . . 1 . . . Allies Corrupted . | . . . . . . . . . . . . . . . . . . . . . . . Allies Melted . | . . . . . . . . . . . . . . . . . . . . . . . Intel | -11 -10 -10 -9 -9 -9 -8 -8 -8 -8 -7 -7 -6 -6 -6 -6 -6 -5 -5 -5 -5 -4 -4 ------- Run | Scr Mat Min Mat Min Exi Min Mat Gar Mat Fac DSF Fac Ext Cet Arc Hub Fac Upp Upp Zhi Pro Fac Robot Analysis Total 13 | . 1 1 3 . . . 1 . 1 . . . . . . . 2 . . 4 . . Derelict Logs Recovered 2 | . . . . . . . . . . . . . . . . . . 2 . . . . Drone Launches . | . . . . . . . . . . . . . . . . . . . . . . . Drone Recoveries . | . . . . . . . . . . . . . . . . . . . . . . . Exploration | -11 -10 -10 -9 -9 -9 -8 -8 -8 -8 -7 -7 -6 -6 -6 -6 -6 -5 -5 -5 -5 -4 -4 ------------- Run | Scr Mat Min Mat Min Exi Min Mat Gar Mat Fac DSF Fac Ext Cet Arc Hub Fac Upp Upp Zhi Pro Fac Turns Passed 11199 | 81 386 280 1117 64 363 409 1135 415 470 288 115 412 1163 747 186 222 752 650 445 233 562 704 Spaces Moved 5274 | 45 280 105 517 40 224 247 521 167 221 165 57 214 522 214 55 86 361 340 218 136 286 253 Core 19 | 17 . . . . . . . . . . . . . 2 . . . . . . . . Treads 4770 | . . . 445 40 224 247 521 167 221 165 57 214 522 212 55 86 361 340 218 136 286 253 Legs . | . . . . . . . . . . . . . . . . . . . . . . . Wheels 485 | 28 280 105 72 . . . . . . . . . . . . . . . . . . . Hover . | . . . . . . . . . . . . . . . . . . . . . . . Flight . | . . . . . . . . . . . . . . . . . . . . . . . Fastest Speed 50 | 50 80 110 95 160 160 160 160 240 160 160 160 160 160 160 160 160 160 160 160 160 160 160 Average Speed 156 | 72 86 120 151 160 160 160 160 240 160 160 160 160 160 161 160 160 160 160 160 160 160 160 Slowest Speed 300 | 90 110 140 160 160 160 160 240 240 160 160 160 160 160 300 160 160 160 160 160 160 160 240 Overloaded Moves . | . . . . . . . . . . . . . . . . . . . . . . . Propulsion Burnouts . | . . . . . . . . . . . . . . . . . . . . . . . Robots Hopped . | . . . . . . . . . . . . . . . . . . . . . . . Cave-ins Triggered . | . . . . . . . . . . . . . . . . . . . . . . . Teleports 1 | . . . . . . . . . . . . . . . . . . . . 1 . . Exploration Rate (%) 43 | 3 51 25 52 17 61 62 75 42 33 8 54 8 73 72 84 23 16 58 51 61 55 12 Regions Visited 22 Branch Regions 12 Pre-discovered Areas 4 | . . . . . . . 1 . . . . . . . . . . . . 3 . . Known Exits Taken 8 | . . . . . . . 1 . . 1 . . 1 . . . 1 1 1 1 1 . Unknown Exits Taken 12 | 1 1 1 1 1 1 1 . . 1 . . 1 . 1 1 1 . . . . . . Scrap Searched 4 | . . 1 . 1 . . . . . . . . . . . . . . 1 . 1 . Spaces Dug 56 | . 4 . . . . . 8 . 3 3 2 1 . 1 . 13 6 6 6 . 2 1 Terrain Destroyed 600 | . 4 . 25 . . . 114 . 25 3 2 1 . 62 14 214 24 21 14 . 21 56 Melee 14 | . . . . . . . 3 . 3 3 2 1 . . . . 1 . . . . 1 Projectile 140 | . 4 . . . . . 6 . 1 . . . . 4 14 21 23 21 12 . 19 15 AOE 442 | . . . 25 . . . 105 . 21 . . . . 58 . 193 . . . . . 40 Terrain Rammed . | . . . . . . . . . . . . . . . . . . . . . . . Walls Destroyed . | . . . . . . . . . . . . . . . . . . . . . . . Machines Disabled . | . . . . . . . . . . . . . . . . . . . . . . . Actions | -11 -10 -10 -9 -9 -9 -8 -8 -8 -8 -7 -7 -6 -6 -6 -6 -6 -5 -5 -5 -5 -4 -4 --------- Run | Scr Mat Min Mat Min Exi Min Mat Gar Mat Fac DSF Fac Ext Cet Arc Hub Fac Upp Upp Zhi Pro Fac Total 6943 | 73 351 173 693 40 231 251 714 183 291 182 72 259 712 463 102 122 465 393 267 151 335 420 Wait 175 | . 2 1 4 . . . 12 . 2 . . . 43 47 3 2 9 18 6 . 6 20 Move 5251 | 44 279 104 516 39 223 246 520 165 220 164 56 213 521 213 54 85 360 339 217 135 285 253 Hop . | . . . . . . . . . . . . . . . . . . . . . . . Pick Up 163 | 10 14 6 19 . 2 . 18 3 8 4 2 5 4 29 6 . 12 1 3 . 1 16 Fast Attach 66 | 4 1 1 8 . . . 13 . 3 1 1 3 1 13 . . 5 . . 9 . 3 Attach 105 | 4 2 3 17 . 1 . 13 1 3 2 1 5 2 22 1 1 6 2 1 . 2 16 Detach 37 | 1 1 2 4 . 1 . 6 . . . 1 2 2 7 . . 5 . . . . 5 Swap 283 | . 7 9 13 1 . . 49 6 11 3 5 9 35 24 10 6 23 11 16 . 15 30 Drop 139 | . 8 4 17 . 4 . 32 4 10 3 1 4 5 12 6 . 10 1 1 7 . 10 Fire 666 | 10 37 43 95 . . 5 46 . 29 1 2 17 69 96 22 27 33 21 23 . 26 64 Melee 16 | . . . . . . . 3 . 3 4 3 1 . . . . 1 . . . . 1 Ram . | . . . . . . . . . . . . . . . . . . . . . . . Kick . | . . . . . . . . . . . . . . . . . . . . . . . Crush 10 | . . . . . . . 2 . 2 . . . 2 . . 1 1 . . . . 2 Escape Stasis 4 | . . . . . . . . 4 . . . . . . . . . . . . . . Rewire 28 | . . . . . . . . . . . . . 28 . . . . . . . . . Trap . | . . . . . . . . . . . . . . . . . . . . . . . Miscellaneous . | . . . . . . . . . . . . . . . . . . . . . . . Route ------- -11/Scrapyard -10/Materials (discovered 2 exits: *Min x2) -10/Mines -9/Materials (discovered 2 exits: *Mat / [*Min]) -9/Mines -9/Exiles (discovered 2 exits: [*Min x2]) -8/Mines -8/Materials (discovered 2 exits: *Fac / Gar) -8/Garrison (discovered 2 exits: *Mat x2) -8/Materials -7/Factory (discovered 2 exits: [*Sto] / DSF) -7/DSF -6/Factory (discovered 2 exits: [*Low] / *Ext) -6/Extension (discovered 2 exits: *Fac / *Cet) -6/Cetus (discovered 2 exits: *Fac / [*Arc]) -6/Archives (discovered 3 exits: *Fac / *Hub x2) -6/Hub_04(d) -5/Factory (discovered 6 exits: Fac x4 / *Upp x2) -5/Upper Caves -5/Upper Caves -5/Zhirov -4/Proximity Caves -4/Factory (discovered 2 exits: *Upp x2) History --------- Turn | Location | Event 8 | -11/Scrapyard | Discovered new exit (range 14) 82 | -11/Scrapyard | Entered Materials 131 | -10/Materials | Discovered new exit (range 16) 227 | -10/Materials | Central database locked down 304 | -10/Materials | Build established: Mutant 422 | -10/Materials | Discovered new exit (range 6) 468 | -10/Materials | Entered Mines 468 | -10/Mines | Accompanied by 1 ally 481 | -10/Mines | Met a Derelict bent on vengeance 711 | -10/Mines | Discovered new exit (range 9) 720 | -10/Mines | Core integrity fell below 50% 748 | -10/Mines | Entered Materials 748 | -9/Materials | Accompanied by 1 ally 748 | -9/Materials | Evolved 2 slots: Propulsion x1, Utility x1 944 | -9/Materials | Lost 3 parts (2n1w) 1024 | -9/Materials | Discovered new exit (range 9) 1027 | -9/Materials | Lost 7 parts (3n1u3w) 1293 | -9/Materials | Discovered new exit (range 4) 1840 | -9/Materials | Core integrity fell below 50% 1865 | -9/Materials | Entered Mines 1886 | -9/Mines | Build established: Scavenger-Mutant 1897 | -9/Mines | A weapon hastily lodged in a ceiling crevice suddenly fell to the ground 1923 | -9/Mines | Deemed a non-threat by the Exiles lab entrance 1923 | -9/Mines | Discovered new exit (range 5) 1929 | -9/Mines | Entered Exiles 1950 | -9/Exiles | Discovered new exit (range 17) 1966 | -9/Exiles | Met 8R-AWN 1997 | -9/Exiles | Met EX-HEX 2040 | -9/Exiles | Met EX-BIN 2057 | -9/Exiles | Aligned with FarCom system 2059 | -9/Exiles | Given EX-Vault access code 2096 | -9/Exiles | Opened EX-Vault 2109 | -9/Exiles | Found AWS/Autocannon 2143 | -9/Exiles | Warned to stay clear of 0b10 Research branches 2186 | -9/Exiles | Met EX-DEC 2279 | -9/Exiles | Discovered new exit (range 10) 2292 | -9/Exiles | Left Exiles lab with AWS/Autocannon 2292 | -9/Exiles | Entered Mines 2556 | -8/Mines | Discovered new exit (range 15) 2588 | -8/Mines | Build established: Scavenger-Skirmisher 2701 | -8/Mines | Entered Materials 2701 | -8/Materials | Evolved 2 slots: Utility x1, Weapon x1 3058 | -8/Materials | Build established: Skirmisher 3426 | -8/Materials | Discovered new exit (range 5) 3679 | -8/Materials | Central database locked down 3835 | -8/Materials | Identified exit to Garrison 3836 | -8/Materials | Entered Garrison 3940 | -8/Garrison | Triggered checkpoint 3948 | -8/Garrison | Triggered checkpoint 4038 | -8/Garrison | Discovered new exit (range 8) 4210 | -8/Garrison | Discovered new exit (range 8) 4239 | -8/Garrison | Installed Relay Interface Framework 4251 | -8/Garrison | Entered Materials 4604 | -8/Materials | Discovered new exit (range 16) 4721 | -8/Materials | Entered Factory 4721 | -7/Factory | Evolved 2 slots: Propulsion x1, Utility x1 4997 | -7/Factory | Discovered new exit (range 20) 5008 | -7/Factory | Identified exit to DSF 5009 | -7/Factory | Entered DSF 5058 | -7/DSF | Discovered new exit (range 19) 5088 | -7/DSF | Additional patrols routed to DSF 5124 | -7/DSF | Entered Factory 5124 | -6/Factory | Evolved 2 slots: Utility x2 5192 | -6/Factory | Discovered new exit (range 15) 5489 | -6/Factory | Discovered new exit (range 20) 5536 | -6/Factory | Entered Extension 5611 | -6/Extension | Build established: Scavenger-Skirmisher 5861 | -6/Extension | Disrupted transfer network 5889 | -6/Extension | Spotted B-75 Beast 6047 | -6/Extension | Rescued a captive Derelict 6075 | -6/Extension | Rescued a captive Derelict 6077 | -6/Extension | Rescued a captive Derelict 6148 | -6/Extension | Rescued a captive Derelict 6163 | -6/Extension | Rescued a captive Derelict 6196 | -6/Extension | Rescued a captive Derelict 6401 | -6/Extension | Allies destroyed B-75 Beast 6421 | -6/Extension | Spotted B-75 Beast 6444 | -6/Extension | Allies destroyed B-75 Beast 6630 | -6/Extension | Discovered new exit (range 20) 6633 | -6/Extension | Discovered new exit (range 18) 6671 | -6/Extension | Identified exit to Cetus 6699 | -6/Extension | Entered Cetus 6699 | -6/Cetus | Accompanied by 4 allies 6719 | -6/Cetus | Spotted Cetus Guard 6719 | -6/Cetus | Spotted Cetus Guard 6719 | -6/Cetus | Spotted Cetus Guard 6719 | -6/Cetus | Spotted Cetus Guard 6748 | -6/Cetus | Destroyed Cetus Guard 6756 | -6/Cetus | Destroyed Cetus Guard 6779 | -6/Cetus | Destroyed Cetus Guard 6836 | -6/Cetus | Destroyed Cetus Guard 6862 | -6/Cetus | Lost 15 parts (2p6n1u6w) 7067 | -6/Cetus | Destroyed 7 combat bots 7130 | -6/Cetus | Found a strange terminal 7144 | -6/Cetus | Discovered new exit (range 22) 7191 | -6/Cetus | Spotted Cetus Guard 7191 | -6/Cetus | Spotted Cetus Guard 7191 | -6/Cetus | Spotted Cetus Guard 7191 | -6/Cetus | Spotted Cetus Guard 7206 | -6/Cetus | Discovered new exit (range 21) 7218 | -6/Cetus | Core integrity fell below 50% 7245 | -6/Cetus | Destroyed Cetus Guard 7259 | -6/Cetus | Destroyed Cetus Guard 7285 | -6/Cetus | Destroyed Cetus Guard 7303 | -6/Cetus | Destroyed Cetus Guard 7317 | -6/Cetus | Lost 9 parts (1p2n1u5w) 7446 | -6/Cetus | Entered Archives 7542 | -6/Archives | Discovered new exit (range 22) 7550 | -6/Archives | Discovered new exit (range 14) 7597 | -6/Archives | Discovered new exit (range 13) 7632 | -6/Archives | Entered Hub_04(d) 7740 | -6/Hub_04(d) | Discovered new exit (range 10) 7746 | -6/Hub_04(d) | Core integrity fell below 20% 7850 | -6/Hub_04(d) | Network Hub disabled 7854 | -6/Hub_04(d) | Entered Factory 7854 | -5/Factory | Evolved 2 slots: Utility x1, Weapon x1 8082 | -5/Factory | Identified exit to Factory 8154 | -5/Factory | First assault squad dispatched 8424 | -5/Factory | Identified exit to Upper Caves 8424 | -5/Factory | Central database locked down 8606 | -5/Factory | Entered Upper Caves 8931 | -5/Upper Caves | Destroyed 8 combat bots 8980 | -5/Upper Caves | Learned Factory stockpile data 9031 | -5/Upper Caves | Learned Factory emergency access door positions 9245 | -5/Upper Caves | Discovered new exit (range 8) 9255 | -5/Upper Caves | Identified exit to Upper Caves 9256 | -5/Upper Caves | Entered another Upper Caves area 9459 | -5/Upper Caves | A Commander dispatched an escort 9693 | -5/Upper Caves | Discovered new exit (range 5) 9700 | -5/Upper Caves | Identified exit to Zhirov 9701 | -5/Upper Caves | Entered Zhirov 9703 | -5/Zhirov | Discovered new exit (range 4) 9733 | -5/Zhirov | Met Zhirov 9768 | -5/Zhirov | Found Alien Artifact 9768 | -5/Zhirov | Identified Integrated Reactor 9768 | -5/Zhirov | Installed Integrated Reactor, increased core energy generation (+10) 9821 | -5/Zhirov | Found Alien Artifact 9821 | -5/Zhirov | Identified Transdimensional Reconstructor 9821 | -5/Zhirov | Warped through subspace 9860 | -5/Zhirov | Learned location of Quarantine (-3) 9860 | -5/Zhirov | Learned location of Testing (-2) 9860 | -5/Zhirov | Learned location of Command (-1) 9868 | -5/Zhirov | Zhirov requested help retrieving the SGEMP Prototype 9933 | -5/Zhirov | Identified exit to Proximity Caves 9934 | -5/Zhirov | Entered Proximity Caves 10485 | -4/Proximity Caves | Discovered exit to Factory (range 10) 10496 | -4/Proximity Caves | Entered Factory 10496 | -4/Factory | Evolved 2 slots: Power x1, Utility x1 10517 | -4/Factory | Spotted B-86 Titan 10588 | -4/Factory | Destroyed B-86 Titan 10601 | -4/Factory | Lost 6 parts (2n1u3w) 10968 | -4/Factory | Identified exit to Upper Caves 11200 | -4/Factory | Self-destructed Last Messages --------------- 11187_ H-77 Assassin destroyed. 11187_ Slug penetrates H-77 Assassin. 11189_ Penetrated by Slug. 11189_ Slug penetrates Door. 11189_ R-10 Processor inserts Terrain Scanner into recycling unit. 11190_ Slug penetrates H-77 Assassin. 11190_ K-01 Serf destroyed. 11192_ Penetrated by Slug. 11193_ Slug penetrates H-77 Assassin. 11194_ R-10 Processor collects Hpw. Shotgun. 11195_ Penetrated by Slug. 11198_ Slug penetrates Fusion Modulator. 11198_ R-10 Processor collects Lgt. Ion Engine. 11199_ Fusion Modulator explodes. 11199_ Autogun destroyed. 11199_ H-77 Assassin destroyed. 11199_ Fusion Modulator explodes. 11199_ R-10 Processor destroyed. 11199_ K-01 Serf destroyed. [Achievement: I Was Wrong!] Map ----- +----------------------------------------------------+ | ?????????????????????????????????????? ??? ?????#? | | ????????????????????#??????????????????? ????????? | | ???????????????????????????????????????????#?????? | | ????????????"?????????? ??#??????????#??#??######? | | ?????????????????????? ?? ???#??????#????#? #? | | ??????????????????????? ? ??#####??#???#?? """ #? | | ????????????????????????? ?## =########## """ #? | | ?????????????"???????# > + """ =# | | ????????????????????????? ??# ] ########!# #? | | ????????????"???????????? ?### ######??#!# #? | | ???????????????? ???#???? ## # ##"######+########? | | ???????#????????######+##+# !#%= / ==* = # | | ????????????????+ """ #"##+#""## ! ##?? | | ????????????????# "Y" # ! =| # #!! #??# | | ????????#???????# " " * # % " # """ """ #??? | | ???????????????## !u=# " # """ """ #??# | | ???????????????#; [%!!u# " # """ """ #??? | | ??????????????##; *%*!!%# " # #??# | | ??????????????# ; !!!# " # """ """ #??? | | ????????????#?# = ####"""### """ """ #??? | | ??????????????# ;# ## #### """ """ #??? | | ?????????#????# = !; ???#??# #??# | | ??????#???????# %[ ##?? # """ """ #### | | ?????????#????# ;;;# # """ """ # | | ??????????????# = # """ """ # | | ???????????????#; @;;;# + + " | | ???????????????#; % ; # ??? ############ " | | ?????????????? #; ; ## ??# ## " | | ????????????=??###;; ;p;;### ??# """"" ## " | | ???????????????# u ?? ?# """"" ## " | | ???????????????# ???? # """ ## " | | ???????????????# ????? + ] ## | | ???????????????+ p ??????# ## | | ???????????????# ?? ?# ## | | ???????????????# k ????# [ ## | | ???????????????# #####+######### | | ??????????????? w | | ?????????????? | | ????????????? | | ???????????? | | ??????????? w | | ???????????###############+######+##### T######### | | ?????????????????????????? ???????????####???##?# | | ???????????????????????????????????? ???#???????# | | ????????????????????????????????????????????????# | | ????????????????????????????????????????????????# | | ????????????????????????????????????????????????# | | ??????????????????????????????????? ?????#??????# | | ????????????????????????????????????????????????# | | ??????????????????????????????????????????????#?# | +----------------------------------------------------+ Best States ------------- Heat Dissipation 62 Energy Generation 55 Energy Capacity 820 Matter Stores 300 Matter Capacity 550 Sight Range 22 Robot Scan Range 16 Terrain Scan Range 20 Terrain Scan Density 210 Jamming Range 12 Armor Coverage 900 Resistance: TH 10 Weapon Shielding 66 Weapon Cycling 15 Evasion (%) 50 Targeting Accuracy 8 Recoil Reduction 4 Salvage Targeting 3 Offensive Hacking 24 Defensive Hacking 10 Item Schematics ----------------- Assault Drone Bay | -5/Zhirov | Free Exp. Heat Sink | -5/Zhirov | Free Exp. Optical Array | -5/Zhirov | Free Imp. Arc Thrower | -5/Zhirov | Free Adv. Salvage Targeting Computer | -4/Factory | Hacked Robot Schematics ------------------ None Fabricated ------------ Nothing Alien Tech Used ----------------- Integrated Reactor Transdimensional Reconstructor Achievements -------------- I Was Wrong! Challenges ------------ None Game ------ Seed MolecularClaymoresMapper Manual? 0 Play Time 02:39:21 Cumulative 631.5 hours Start 2022.05.15 @ 16:48:29 End 2022.05.15 @ 20:37:38 Sessions 5 Manual Loads 0 Difficulty Rogue Special Mode None Game No. 322 Rogue 195 Adventurer 125 Explorer 2 Win Type - Total 63 Types 54/3/3/1/1/0/0/0/1 Lore% 75 Gallery% 86 Achievement% 71 Wizard Run 0 Options --------- ASCII 0 Keyboard 1 Movement Numpad Keybinds 0 Fullscreen 1 Font 36/TerminusFine Map View 76x50 Tactical HUD 1 Map Filters NONE Filters NONE Steam 1 RUN: 49517840-4884-43d2-b04f-ca4648f568bb